Cogmind - Beta 15 @@@ ROGUE MODE // 2025.05.29 @ 13:57:23 Player: Elias Result: Destroyed by Cetus Guard with Advanced KE Penetrator Performance ------------- Evolutions (5) 2500 Regions Visited (7) 1400 Robots Destroyed (29) 145 Value Destroyed (1166) 1166 Prototype IDs (18) 360 Alien Tech Used (0) 0 Bonus (800) 800 TOTAL SCORE: 6371 Bonus ------- Registered with UFD 300 Met Optimus in HQ 500 Cogmind --------- Core Integrity 0/1000 Matter 136/300 Energy 99/100 System Corruption 9% Temperature Cool (9) Movement Core (50) Location -5/Cetus Parts ------- > --- POWER (2) -------- (None) > --- PROPULSION (4) --- Gyrokinetic Inverter > --- UTILITY (7) ------ Advanced Hacking Suite > --- WEAPON (4) ------- (None) > --- INVENTORY (5) ---- Improved Weapon Cycler Advanced Shield Generator Peak State ------------ > --- POWER ------------ Micro Fission Core Micro Fission Core > --- PROPULSION ------- Armored Medium Treads Armored Medium Treads Armored Medium Treads Overtuned Medium Treads > --- UTILITY ---------- Scrap Suit High-capacity Storage Unit Improved Signal Interpreter Layered Heavy Armor Plating A0-MCA's Component Scanner > --- WEAPON ----------- Improved EM Pulse Cannon Improved EM Pulse Cannon Flak Gun Coil Gun > --- INVENTORY -------- Aluminum Leg Aluminum Leg Improved Heat Sink Advanced Heat Sink Advanced Heat Sink Large Storage Unit High-capacity Battery Particle Charger Improved Kinecellerator Improved Weapon Cycler Improved Medium Armor Plating Advanced Shield Generator Improved Field Recycling Unit Small Laser Subdweller Shrapnel Launcher Mining Claw [Rating: 91] Favorites ----------- Power Angular Momentum Engine Engine Angular Momentum Engine Power Core Light Nuclear Core Propulsion Light Treads Treads Light Treads Hover Unit Gyrokinetic Inverter Utility A0-MCA's Component Scanner Device Scrap Suit Storage Large Storage Unit Processor A0-MCA's Component Scanner Hackware Advanced Hacking Suite Protection Layered Heavy Armor Plating Weapon Heavy Machine Gun Energy Gun Heavy Laser Energy Cannon Improved EM Pulse Cannon Ballistic Gun Heavy Machine Gun Launcher Grenade Launcher Slashing Weapon Mining Claw Build | -11 -10 -10 -10 -7 -5 -5 -5 ------- Run | Yrd Mat Min Sub Scr Fac Ext Cet Slots Evolved 10 | . . . . . 10 . . Power 1 | . . . . . 1 . . Propulsion 2 | . . . . . 2 . . Utility 5 | . . . . . 5 . . Weapon 2 | . . . . . 2 . . Parts Attached 50 | 6 5 5 . 11 9 13 1 Power 7 | 1 1 1 . 1 1 2 . Engine 4 | 1 1 . . 1 1 . . Core 3 | . . 1 . . . 2 . Reactor . | . . . . . . . . Propulsion 13 | 2 . 2 . 3 . 5 1 Treads 12 | 2 . 2 . 3 . 5 . Leg . | . . . . . . . . Wheel . | . . . . . . . . Hover 1 | . . . . . . . 1 Flight . | . . . . . . . . Utility 14 | 1 2 . . 3 5 3 . Device 6 | . 1 . . 1 3 1 . Storage 3 | 1 1 . . 1 . . . Processor 3 | . . . . 1 2 . . Hackware 1 | . . . . . . 1 . Protection 1 | . . . . . . 1 . Artifact . | . . . . . . . . Weapon 16 | 2 2 2 . 4 3 3 . Energy Gun 5 | 1 . 1 . 3 . . . Energy Cannon 2 | . . . . . . 2 . Ballistic Gun 6 | 1 1 . . 1 3 . . Ballistic Cannon . | . . . . . . . . Launcher 2 | . 1 . . . . 1 . Special Weapon . | . . . . . . . . Impact Weapon . | . . . . . . . . Slashing Weapon 1 | . . 1 . . . . . Piercing Weapon . | . . . . . . . . Special Melee Weapon . | . . . . . . . . Unidentified Prototypes . | . . . . . . . . Parts Lost 26 | . . 7 . . 3 14 2 Power 4 | . . 1 . . 1 2 . Propulsion 7 | . . 2 . . 1 3 1 Utility 5 | . . 1 . . . 3 1 Weapon 10 | . . 3 . . 1 6 . Highest Loss Streak 9 | . . 7 . . 3 9 2 To Critical Strikes . | . . . . . . . . Average Backups 13 | 3 7 10 10 15 14 13 2 Power . | . 1 1 1 1 1 . . Propulsion 2 | 1 3 3 2 2 2 2 . Utility 5 | . . 3 4 6 6 8 2 Weapon 3 | . 2 2 2 4 5 2 . Tool/Special . | . . . . . . . . Unused Backups 13 | . . . . . . 11 2 Power . | . . . . . . . . Propulsion 2 | . . . . . . 2 . Utility 10 | . . . . . . 8 2 Weapon 1 | . . . . . . 1 . Tool/Special . | . . . . . . . . Average Slot Usage (%) 85 | . 91 72 71 95 78 67 25 Engine 7 | . 14 4 . 9 7 . . Core 4 | . . 5 14 4 . 8 . Treads 23 | . 28 21 28 28 16 11 5 Device 5 | . 5 5 . 3 13 7 5 Storage 11 | . 14 14 14 14 5 4 . Processor 6 | . . . . 7 11 9 . Energy Gun 8 | . 10 4 . 12 5 1 . Ballistic Gun 11 | . 16 6 . 12 14 10 . Slashing Weapon 2 | . . 8 14 1 . . 3 Peak Build Rating 91 | 6 8 10 9 41 81 91 24 Average Rating 32 | 5 6 7 8 28 72 66 22 On Entrance 19 | . 6 8 8 9 41 68 18 Naked Turns 4 | . . . . . . 4 . Heaviest Build 98 | 13 30 30 27 63 98 97 5 Greatest Support 108 | 40 40 40 40 53 71 108 11 Greatest Overweight (x) 8 | . . 8 . 2 3 3 1 Average Overweight (x) . | . . . . . 1 1 . Largest Inventory Capacity 20 | 8 15 15 15 20 20 20 5 Average Capacity 16 | 7 11 15 15 17 20 17 5 Most Carried 20 | 5 10 13 11 20 19 18 4 Average Carried 13 | 3 7 10 10 15 15 13 2 Final Capacity 20 | 8 15 15 15 20 20 5 5 Final Carried 20 | 4 10 9 11 20 12 5 2 Class Distribution -------------------- 78% | Mutant 9% | Scrapper 6% | Tank 5% | Skirmisher Dominant Class ---------------- Mutant | -10/Materials Mutant | -10/Mines Mutant | -10/Subcaves Mutant | -7/Scraptown Scrapper | -5/Factory Tank | -5/Extension Mutant | -5/Cetus Resources | -11 -10 -10 -10 -7 -5 -5 -5 ----------- Run | Yrd Mat Min Sub Scr Fac Ext Cet Matter Collected 1390 | 180 67 219 . 50 343 531 . Remotely . | . . . . . . . . Salvage Created 1371 | . 120 233 . . 422 596 . Parts 75 | . 8 12 . . 21 34 . Haulers Intercepted 1 | . 1 . . . . . . Recyclers Shooed 1 | . 1 . . . . . . Parts Field Recycled 7 | . . . . . 6 1 . Retrieved Matter 66 | . . . . . 64 2 . Parts Self-Destructed 2 | . . . 2 . . . . Prevented . | . . . . . . . . Kills | -11 -10 -10 -10 -7 -5 -5 -5 ------- Run | Yrd Mat Min Sub Scr Fac Ext Cet Combat Hostiles Destroyed 22 | . 4 4 . . 6 8 . Melee 1 | . . 1 . . . . . Guns 14 | . 1 3 . . 6 4 . Cannons 1 | . . . . . . 1 . AOE 5 | . 3 . . . . 2 . Classes Destroyed 9 | . 3 1 . . 3 2 . Tunneler 1 | . . . . . 1 . . Hauler 1 | . 1 . . . . . . Recycler 2 | . . 1 . . 1 . . Operator 2 | . . . . . 1 1 . Watcher 1 | . . . . . . 1 . Swarmer 3 | . 3 . . . . . . Grunt 13 | . 1 4 . . 4 4 . Sentry 4 | . . . . . . 4 . Programmer 2 | . . . . . 2 . . Best Kill Streak 5 | . 3 2 . . 5 4 . Combat Bots Only 4 | . 3 2 . . 4 4 . Max Kills in Single Turn 3 | . 3 1 . . 2 1 . Gunslinging 1 | . . . . . 1 . . Exploded 3 | . 3 . . . . 1 . Melee 1 | . . 1 . . . . . Uniques/NPCs Destroyed . | . . . . . . . . Combat | -11 -10 -10 -10 -7 -5 -5 -5 -------- Run | Yrd Mat Min Sub Scr Fac Ext Cet Hostile Shots Fired 383 | . 18 57 . . 46 241 21 Missed 91 | . 3 4 . . 7 71 6 Hits 292 | . 15 53 . . 39 170 15 Projectile 292 | . 15 53 . . 39 170 15 AOE 1 | . . . . . 1 . . Critical Strikes 11 | . . 1 . . 1 8 1 Damage Taken 6243 | . 179 712 . . 986 3953 413 Core 1203 | . 26 163 . . 200 628 186 Absorbed by Shields . | . . . . . . . . Regen/Repaired (Parts) 58 | . . . . . 10 48 . Core Remaining (%) 62 | 100 . . . 24 . . . Volleys Fired 102 | . 20 25 . . 28 29 . Largest 4 | . 2 2 . . 4 4 . Hottest 196 | . 70 115 . . 188 196 . Shots Fired 254 | . 40 44 . . 80 90 . Gun 221 | . 39 44 . . 80 58 . Cannon 30 | . . . . . . 30 . Launcher 3 | . 1 . . . . 2 . Special . | . . . . . . . . Kinetic 169 | . 30 22 . . 66 51 . Thermal 54 | . 9 22 . . 14 9 . Explosive 1 | . 1 . . . . . . Electromagnetic 30 | . . . . . . 30 . Robot Hit Streak 14 | . 4 11 . . 8 14 . Robot Miss Streak 8 | . 3 2 . . 5 8 . Penetration Max 1 | . . . . . 1 1 . Secondary Targets 2 | . . . . . 2 . . Max Gunslinging Chain 1 | . . . . . 1 . . Shots Hit Robots 165 | . 19 34 . . 48 64 . Core Hits 125 | 3 6 10 . . 38 68 . Critical Kills 1 | . . . . . 1 . . Critical Parts Destroyed 1 | . . . . . 1 . . Critical Strikes 6 | . 1 . . . 4 1 . Burn 3 | . 1 . . . 2 . . Destroy 2 | . . . . . 2 . . Corrupt 1 | . . . . . . 1 . Melee Attacks 9 | . . 4 4 . . . 1 Impact . | . . . . . . . . Slashing 9 | . . 4 4 . . . 1 Piercing . | . . . . . . . . Sneak Attacks 1 | . . 1 . . . . . Combat Hostiles . | . . . . . . . . Follow-up Attacks . | . . . . . . . . Damage Inflicted 3900 | 14 378 489 . . 1287 1732 . Guns 2701 | . 238 369 . . 1265 829 . Cannons 582 | . . . . . . 582 . Explosions 461 | . 140 . . . . 321 . Melee 120 | . . 120 . . . . . Ramming 36 | 14 . . . . 22 . . Kinetic 2399 | . 164 162 . . 1075 998 . Thermal 623 | . 74 207 . . 190 152 . Explosive 140 | . 140 . . . . . . Electromagnetic 582 | . . . . . . 582 . Impact . | . . . . . . . . Slashing 120 | . . 120 . . . . . Piercing . | . . . . . . . . Highest Corruption 9 | . . . . . 9 9 9 Average Corruption 8 | . . . . . 7 9 9 Corruption Purged . | . . . . . . . . Corruption Blocked . | . . . . . . . . Effects 39 | . . . . . 6 31 2 Message Errors 10 | . . . . . . 10 . Matter Fused 4 | . . . . . 1 3 . Heat Flow Errors 7 | . . . . . 2 4 1 Energy Discharges 1 | . . . . . . 1 . Parts Rejected 2 | . . . . . 1 . 1 Parts Fused 1 | . . . . . 1 . . Data Loss (minor) 3 | . . . . . . 3 . Data Loss (major) 3 | . . . . . . 3 . Misfires 3 | . . . . . . 3 . Alerts 2 | . . . . . . 2 . Weapon Failures 3 | . . . . . 1 2 . Overload Shots . | . . . . . . . . Overflow Damage 84 | . 25 20 . . . 39 . Projectiles 39 | . . . . . . 39 . Explosions 25 | . 25 . . . . . . Melee 20 | . . 20 . . . . . Knockbacks . | . . . . . . . . Impact . | . . . . . . . . Kinetic . | . . . . . . . . Secondary . | . . . . . . . . Self-Inflicted Damage 184 | . 39 . . . . 145 . Shots 4 | . 1 . . . . 3 . Rammed 6 | 5 . . . . 1 . . Targets Rammed 6 | 5 . . . . 1 . . Kicked . | . . . . . . . . Crushed . | . . . . . . . . Highest Temperature 575 | . 70 553 . . 575 571 258 Average Temperature 213 | . 24 260 . . 255 201 143 Received Heat Transfer 1597 | . 36 408 . . 120 988 45 Effects 63 | . . 7 . . 26 30 . Shutdowns 14 | . . . . . 3 11 . Energy Bleed 6 | . . 2 . . 2 2 . Interference 20 | . . . . . 11 9 . Matter Decay 9 | . . . . . 4 5 . Short Circuit 6 | . . 2 . . 3 1 . Damage (minor) 6 | . . 2 . . 2 2 . Damage (major) 1 | . . 1 . . . . . Damage (core) 1 | . . . . . 1 . . Siege Activations . | . . . . . . . . Martial Activations . | . . . . . . . . Shielding Activations . | . . . . . . . . Robots Disrupted . | . . . . . . . . Combat Hostiles . | . . . . . . . . Robots Corrupted 1 | . . . . . . 1 . Combat Hostiles 1 | . . . . . . 1 . Parts Fried 1 | . . . . . . 1 . Impact Corruptions . | . . . . . . . . Robots Melted . | . . . . . . . . Combat Hostiles . | . . . . . . . . Parts Melted 3 | . . 3 . . . . . Heat Transferred 1564 | . 296 518 . . 550 200 . Parts Sabotaged . | . . . . . . . . Parts Stolen . | . . . . . . . . Parts Stripped . | . . . . . . . . Power Chain Reactions 1 | . . . . . . 1 . Alert | -11 -10 -10 -10 -7 -5 -5 -5 ------- Run | Yrd Mat Min Sub Scr Fac Ext Cet Maximum Alert Level . | . . . . . . . . Low Security (%) 100 | 100 100 100 . . 100 100 100 Level 1 . | . . . . . . . . Level 2 . | . . . . . . . . Level 3 . | . . . . . . . . Level 4 . | . . . . . . . . Level 5 . | . . . . . . . . High Security . | . . . . . . . . Max Security . | . . . . . . . . Peak Influence 114 | . 101 73 . . 114 104 57 Initial 57 | . . 23 . . . 17 57 Average 19 | . 16 9 . . 42 12 52 Influence Increases 893 | . 143 105 . . 248 397 . Destroy 0b10 Robot/C 440 | . 80 80 . . 120 160 . Destroy 0b10 Robot/NC 35 | . 5 5 . . 15 10 . Destroy Leader 84 | . 22 20 . . 20 22 . Successful Hack 29 | . 12 . . . 10 7 . Disable Machine 30 | . . . . . 30 . . Destroy Structure 65 | . 9 . . . 8 48 . Lose Combat Pursuer 210 | . 15 . . . 45 150 . Influence Decreases 866 | . 82 166 . . 212 329 77 Entered New Map 104 | . . 38 . . . 19 47 Time Decay 606 | . 82 108 . . 182 224 10 Lost Part 140 | . . 20 . . 30 70 20 Lost Ally 16 | . . . . . . 16 . Squads Dispatched 2 | . 1 . . . 1 . . Investigation . | . . . . . . . . Extermination 1 | . . . . . 1 . . Reinforcement 1 | . 1 . . . . . . Assault . | . . . . . . . . Garrison . | . . . . . . . . Intercept . | . . . . . . . . Searches Triggered . | . . . . . . . . Construction Impeded . | . . . . . . . . Haulers Reinforced . | . . . . . . . . Active Scanning Responses . | . . . . . . . . Cargo Convoy Interrupts . | . . . . . . . . Stealth | -11 -10 -10 -10 -7 -5 -5 -5 --------- Run | Yrd Mat Min Sub Scr Fac Ext Cet Distress Signals 4 | . 2 . . . . 1 1 Communications Jammed . | . . . . . . . . Distress Signals . | . . . . . . . . Times Spotted 54 | . 12 4 . . 10 23 5 Peak Tracking Total 7 | . 4 2 . . 4 7 5 Tactical Retreats 8 | . 1 . . . 3 4 . Traps | -11 -10 -10 -10 -7 -5 -5 -5 ------- Run | Yrd Mat Min Sub Scr Fac Ext Cet Traps Triggered 2 | . 2 . . . . . . Indirectly . | . . . . . . . . Trap Hack Attempts . | . . . . . . . . Triggered . | . . . . . . . . Disarmed . | . . . . . . . . Reprogrammed . | . . . . . . . . Reused . | . . . . . . . . Traps Extracted . | . . . . . . . . Installed . | . . . . . . . . Triggered . | . . . . . . . . Machines | -11 -10 -10 -10 -7 -5 -5 -5 ---------- Run | Yrd Mat Min Sub Scr Fac Ext Cet Machines Disabled 3 | . . . . . 2 1 . Max in Single Turn 1 | . . . . . 1 1 . Machines Repaired . | . . . . . . . . Machines Dismantled . | . . . . . . . . Machines Sabotaged . | . . . . . . . . Overloaded Fab Kills . | . . . . . . . . Hacking | -11 -10 -10 -10 -7 -5 -5 -5 --------- Run | Yrd Mat Min Sub Scr Fac Ext Cet Machines Accessed 23 | . 4 . . 11 3 5 . Terminals 9 | . 2 . . . 2 5 . Fabricators . | . . . . . . . . Repair Stations . | . . . . . . . . Recycling Units 3 | . 2 . . . 1 . . Scanalyzers . | . . . . . . . . Garrison Access . | . . . . . . . . Total Hacks 90 | . 7 . . 68 5 10 . Successful 80 | . 5 . . 68 4 3 . Failed 10 | . 2 . . . 1 7 . Catastrophic 1 | . . . . . . 1 . Database Lockouts . | . . . . . . . . Manual . | . . . . . . . . Terminals 17 | . 4 . . . 3 10 . Fabricators . | . . . . . . . . Repair Stations . | . . . . . . . . Recycling Units 5 | . 3 . . . 2 . . Scanalyzers . | . . . . . . . . Garrison Access . | . . . . . . . . Terminal Hacks 76 | . 2 . . 68 3 3 . Record 65 | . . . . 64 . 1 . Robot Analysis 3 | . . . . 3 . . . Prototype ID Bank 1 | . 1 . . . . . . Open Door 1 | . . . . . . 1 . Open DSF 1 | . . . . . 1 . . Branch Access Points 1 | . 1 . . . . . . Emergency Access Points 1 | . . . . . 1 . . Hauler Manifests 1 | . . . . . 1 . . Zone Layout 1 | . . . . . . 1 . Proto ID Catalog 1 | . . . . 1 . . . Fabricator Hacks . | . . . . . . . . Repair Station Hacks . | . . . . . . . . Recycling Unit Hacks 4 | . 3 . . . 1 . . Process 1 | . 1 . . . . . . Report Inventory 1 | . 1 . . . . . . Retrieve Components 2 | . 1 . . . 1 . . Scanalyzer . | . . . . . . . . Garrison Access Hacks . | . . . . . . . . Unauthorized Hacks . | . . . . . . . . Terminals . | . . . . . . . . Fabricators . | . . . . . . . . Repair Stations . | . . . . . . . . Recycling Units . | . . . . . . . . Scanalyzers . | . . . . . . . . Garrison Access . | . . . . . . . . Data Cores Recovered 2 | . . . . . 1 1 . Used . | . . . . . . . . Hacking Detections 5 | . 1 . . . 1 3 . Full Trace Events . | . . . . . . . . Feedback Events . | . . . . . . . . Feedback Blocked . | . . . . . . . . Robot Schematics Acquired . | . . . . . . . . Robots Built . | . . . . . . . . Authchips . | . . . . . . . . Time . | . . . . . . . . Total Robot Build Rating . | . . . . . . . . Part Schematics Acquired . | . . . . . . . . Parts Built . | . . . . . . . . Authchips . | . . . . . . . . Time . | . . . . . . . . Total Part Build Rating . | . . . . . . . . Parts Repaired . | . . . . . . . . Time . | . . . . . . . . Parts Recycled . | . . . . . . . . Recycled Matter 6 | . 6 . . . . . . Retrieved Matter . | . . . . . . . . Retrieved Components 3 | . 1 . . . 2 . . Parts Scanalyzed . | . . . . . . . . Part Schematics Acquired . | . . . . . . . . Parts Damaged . | . . . . . . . . Bothacking | -11 -10 -10 -10 -7 -5 -5 -5 ------------ Run | Yrd Mat Min Sub Scr Fac Ext Cet Used RIF Installer . | . . . . . . . . Robots Hacked . | . . . . . . . . Non-combat . | . . . . . . . . Combat . | . . . . . . . . Robot Hacks Applied . | . . . . . . . . Relay Couplers Released . | . . . . . . . . Fabnet Peak Effective % . | . . . . . . . . Robots Rewired . | . . . . . . . . Allies Hacked . | . . . . . . . . Hacks Repelled . | . . . . . . . . Allies | -11 -10 -10 -10 -7 -5 -5 -5 -------- Run | Yrd Mat Min Sub Scr Fac Ext Cet Total Allies 1 | . . . . . . 1 . Largest Group 1 | . . . . . . 1 . Highest-Rated Group 31 | . . . . . . 31 . Highest-Rated Ally 31 | . . . . . . 31 . Total Orders . | . . . . . . . . Ally Attacks 8 | . . . . . . 8 . Total Damage 41 | . . . . . . 41 . Kills . | . . . . . . . . Allies Corrupted . | . . . . . . . . Allies Melted . | . . . . . . . . Intel | -11 -10 -10 -10 -7 -5 -5 -5 ------- Run | Yrd Mat Min Sub Scr Fac Ext Cet Active Infowar (turns) 1676 | . 274 223 . 357 662 160 . Optics 595 | . . . . 357 238 . . Sensors 1319 | . 274 223 . . 662 160 . Robot Analysis Total 3 | . . . . 3 . . . Derelict Logs Recovered 3 | . . 2 1 . . . . Drone Launches . | . . . . . . . . Drone Recoveries . | . . . . . . . . Exploration | -11 -10 -10 -10 -7 -5 -5 -5 ------------- Run | Yrd Mat Min Sub Scr Fac Ext Cet Turns Passed 6008 | 188 655 630 254 2816 693 742 30 Spaces Moved 3157 | 110 342 297 151 1466 310 446 35 Core 242 | 10 . 27 . . . 186 19 Treads 2899 | 100 342 270 151 1466 310 260 . Legs . | . . . . . . . . Wheels . | . . . . . . . . Hover 16 | . . . . . . . 16 Flight . | . . . . . . . . Fastest Speed 50 | 50 160 160 160 160 146 50 50 Average Speed 173 | 150 160 181 160 190 190 131 69 Slowest Speed 450 | 160 160 450 160 320 320 250 100 Overloaded Moves . | . . . . . . . . Propulsion Burnouts . | . . . . . . . . Robots Hopped . | . . . . . . . . Potential Cave-ins . | . . . . . . . . Cave-ins Triggered . | . . . . . . . . Exploration Rate (%) 36 | 4 50 45 13 87 7 65 17 Regions Visited 7 Branch Regions 5 Pre-discovered Areas 1 | . . . 1 . . . . Known Exits Taken 2 | . 1 . . . 1 . . Unknown Exits Taken 5 | 1 . 1 1 1 . 1 . Scrap Searched 5 | . . . . 5 . . . Spaces Dug . | . . . . . . . . Terrain Destroyed 45 | . 7 . . . 4 34 . Melee . | . . . . . . . . Projectile 9 | . . . . . 4 5 . AOE 36 | . 7 . . . . 29 . Terrain Rammed . | . . . . . . . . Walls Destroyed . | . . . . . . . . Machines Disabled . | . . . . . . . . Actions | -11 -10 -10 -10 -7 -5 -5 -5 --------- Run | Yrd Mat Min Sub Scr Fac Ext Cet Total 3462 | 130 411 338 156 1491 363 534 39 Wait 56 | . 29 1 . . 4 22 . Move 3150 | 109 341 296 150 1465 309 445 35 Hop . | . . . . . . . . Pick Up 61 | 10 10 5 2 10 6 18 . Fast Attach 4 | . 1 . . 1 . 2 . Attach 39 | 6 4 5 . 2 11 9 2 Detach 1 | . . . . . . 1 . Swap 20 | . 5 1 . 8 1 5 . Drop 14 | . 1 1 . 5 3 3 1 Fire 102 | . 20 25 . . 28 29 . Melee 9 | . . 4 4 . . . 1 Ram . | . . . . . . . . Kick . | . . . . . . . . Crush 6 | 5 . . . . 1 . . Escape Stasis . | . . . . . . . . Rewire . | . . . . . . . . Trap . | . . . . . . . . Miscellaneous . | . . . . . . . . Route ------- -11/Scrapyard -10/Materials -10/Mines (discovered 2 exits: [*Mat] / [*Sub]) -10/Subcaves (discovered 2 exits: [*Mat] / *Scr) -7/Scraptown (discovered 2 exits: *Fac x2) -5/Factory -5/Extension (discovered 2 exits: [*Fac] / [*Cet]) -5/Cetus History --------- Turn | Location | Event 5 | -11/Scrapyard | Discovered new exit (range 15) 189 | -11/Scrapyard | Entered Materials 304 | -10/Materials | Build established: Mutant 559 | -10/Materials | Identified exit to Mines 844 | -10/Materials | Entered Mines 947 | -10/Mines | Found a damaged Exp. Sensor Array with a note attached 951 | -10/Mines | Found Prototype Device 1032 | -10/Mines | Learned Materials stockpile data 1082 | -10/Mines | Core integrity fell below 50% 1126 | -10/Mines | Lost 7 parts (1p2n1u3w) 1295 | -10/Mines | Discovered new exit (range 6) 1318 | -10/Mines | Discovered new exit (range 7) 1340 | -10/Mines | Learned Materials terminal intel 1474 | -10/Mines | Entered Subcaves 1475 | -10/Subcaves | Approached by a straggling Scientist 1485 | -10/Subcaves | Shifting Twisted Machinery released Sub. Optics 1490 | -10/Subcaves | Discovered new exit (range 4) 1495 | -10/Subcaves | Shifting Twisted Machinery released Sub. Shrapnel Launcher 1718 | -10/Subcaves | Scientist uncovered a shortcut to Scraptown 1728 | -10/Subcaves | Entered Scraptown 2042 | -7/Scraptown | Discovered new exit (range 11) 2154 | -7/Scraptown | Visited Cyclists 2212 | -7/Scraptown | Visited Bundlers 2434 | -7/Scraptown | Visited TADAMA 2475 | -7/Scraptown | Visited UFD Registry 2515 | -7/Scraptown | Visited Assassins FH 2541 | -7/Scraptown | Visited Spacefarers 2765 | -7/Scraptown | Registered with UFD as "Hammerkit" 2778 | -7/Scraptown | Visited Symbiants 2857 | -7/Scraptown | Entered Cyclist Reading Room 2967 | -7/Scraptown | Visited Science Guys 3025 | -7/Scraptown | Visited A0-MCA Data Center 3034 | -7/Scraptown | Given a B+ rating by A0-MCA 3039 | -7/Scraptown | Found A0-MCA's Component Scanner 3040 | -7/Scraptown | Identified Exp. Sensor Array 3316 | -7/Scraptown | Visited Scrap Suit Storage 3344 | -7/Scraptown | Found Scrap Suit 3386 | -7/Scraptown | Visited Supply Room 3559 | -7/Scraptown | Visited Junk Repository 3607 | -7/Scraptown | Visited Curators Association 3701 | -7/Scraptown | Discovered new exit (range 3) 3890 | -7/Scraptown | Visited Analyses Database 3948 | -7/Scraptown | Visited Supply Room 4016 | -7/Scraptown | Visited Modified Component R&D 4368 | -7/Scraptown | Met Optimus 4368 | -7/Scraptown | Accepted into 0bPrime 4544 | -7/Scraptown | Entered Factory 4544 | -5/Factory | Evolved 10 slots: Power x1, Propulsion x2, Utility x5, Weapon x2 4579 | -5/Factory | Identified exit to DSF 4710 | -5/Factory | Discovered new exit (range 11) 4751 | -5/Factory | Identified exit to Extension 4984 | -5/Factory | Build established: Scrapper 5201 | -5/Factory | Lost 3 parts (1p1n1w) 5237 | -5/Factory | Entered Extension 5428 | -5/Extension | Lost 3 parts (1n1u1w) 5743 | -5/Extension | Build established: Tank 5762 | -5/Extension | Disrupted transfer network 5814 | -5/Extension | Rescued a captive Derelict 5850 | -5/Extension | Spotted B-75 Beast 5862 | -5/Extension | Spotted B-75 Beast 5877 | -5/Extension | Released all parts (7) 5879 | -5/Extension | Core integrity fell below 50% 5885 | -5/Extension | Core integrity fell below 20% 5922 | -5/Extension | Lost 9 parts (1p2n2u4w) 5925 | -5/Extension | Discovered new exit (range 15) 5926 | -5/Extension | Discovered new exit (range 15) 5979 | -5/Extension | Entered Cetus 5994 | -5/Cetus | Spotted Cetus Guard 5994 | -5/Cetus | Spotted Cetus Guard 6000 | -5/Cetus | Spotted Cetus Guard 6000 | -5/Cetus | Spotted Cetus Guard 6009 | -5/Cetus | Destroyed by Cetus Guard with Advanced KE Penetrator Last Messages --------------- 05926_ EXIT=FOUND 05943_ OMBVQNN#/A ZVTHPDAVJK 05952_ Critical hit (Burn: +37). 05972_ Acquired Gyrokinetic Inverter. 05974_ Acquired Adv. Hacking Suite. 05977_ Acquired Matter Filter. LOCATION=UNKNOWN GOAL=ESCAPE 05979_ Dropped Broken Coil Gun. 05983_ System corrupted: Heat flow error (+291). 05996_ Penetrated by Slug. 06000_ System corrupted: Mining Claw rejected. 06000_ Penetrated by Slug. 06003_ Slug penetrates Wall. 06006_ Penetrated by Slug. 06007_ Matter Filter destroyed. 06007_ Penetrated by Slug. 06007_ Arm. Medium Treads destroyed. 06007_ Penetrated by Slug. [Achievement: This Is Interesting...] Map ----- +----------------------------------------------------+ | ?????????????????????????????????????????????????? | | ?????????????????????????????????????????????????? | | ?????????????????????????????????????????????????? | | ?????????????????????????????????????????????????? | | ?????????????????????????????????????????????????? | | ?????????????????????????????????????????????????? | | ??????????????? ???????????????????????????????? | | ??????????????# ???????????????????????????????? | | ??????????????# #??????????????????????????????? | | ??????????????# #??????????????????????????????? | | ??????????????# #??????????????????????????????? | | ??????????????# #??????????????????????????????? | | ??????????????# #??????????????????????????????? | | ??????????????# #??????????????????????????????? | | ??????????????# #??????????????????????????????? | | ??????????????# #??????????????????????????????? | | ??????????????# #??????????????????????????????? | | ??????????????# #??????????????????????????????? | | ??????????????# #??????????????????????????????? | | ??????????????# #??????????????????????????????? | | ??????????????# #??????????????????????????????? | | ?????????????## ####?#####?????????????????????? | | ##############; ##;### ###???????????????????? | | / Y +???????????????????? | | Y Y w +???????????????????? | | Y @ +???????????????????? | | ######################## ###???????????????????? | | ???????????????????????#####?????????????????????? | | ?????????????????????????????????????????????????? | | ?????????????????????????????????????????????????? | | ?????????????????????????????????????????????????? | | ?????????????????????????????????????????????????? | | ?????????????????????????????????????????????????? | | ?????????????????????????????????????????????????? | | ?????????????????????????????????????????????????? | | ?????????????????????????????????????????????????? | | ?????????????????????????????????????????????????? | | ?????????????????????????????????????????????????? | | ?????????????????????????????????????????????????? | | ?????????????????????????????????????????????????? | | ?????????????????????????????????????????????????? | | ?????????????????????????????????????????????????? | | ?????????????????????????????????????????????????? | | ?????????????????????????????????????????????????? | | ?????????????????????????????????????????????????? | | ?????????????????????????????????????????????????? | | ?????????????????????????????????????????????????? | | ?????????????????????????????????????????????????? | | ?????????????????????????????????????????????????? | | ?????????????????????????????????????????????????? | +----------------------------------------------------+ Best States ------------- Heat Dissipation 40 Energy Generation 31 Energy Capacity 350 Matter Stores 300 Matter Capacity 300 Sight Range 22 Robot Scan Range 20 Terrain Scan Density 10 Armor Coverage 600 Evasion (%) 50 Recoil Reduction 4 Offensive Hacking 14 Item Schematics ----------------- None Robot Schematics ------------------ None Fabricated ------------ Nothing Repaired ---------- Nothing Alien Tech Used ----------------- None Achievements -------------- Armchair Analyst This Is Interesting... Challenges ------------ None Game ------ Seed VariableStructuralSaw Manual? 0 Play Time 00:44:52 Cumulative 27.3 hours Start 2025.05.29 @ 12:59:51 End 2025.05.29 @ 13:57:23 Sessions 1 Manual Loads 0 Difficulty Rogue Special Mode None Game No. 36 Rogue 36 Adventurer 0 Explorer 0 Win Type - Total 0 Types 0/0/0/0/0/0/0/0/0/0 Lore% 25 Gallery% 30 Achievement% 26 Wizard Run 0 Options --------- Layout 0 ASCII 0 Keyboard 0 Movement Mouse Keybinds 0 Fullscreen 1 Font 18/SmallcapsGlow Map View 76x50 Zoom Use 0% Tactical HUD 1 Map Filters NONE Filters NONE Steam 1 RUN: 23e47136-cada-4c40-be72-81ada0c73037